bitfinex-derivatives/quotes_BTCF0:USTF0_20250506
["timestamp","ask_amount","ask_price","bid_price","bid_amount"]
[1746549895232,0.34607923,94540.0,94539.0,0.5112846]
[1746549895429,0.34607923,94540.0,94539.0,0.2997]
[1746549896439,0.34607923,94540.0,94539.0,0.5112846]
[1746549897937,0.34607923,94540.0,94539.0,0.2997]
[1746549898136,0.34607923,94540.0,94539.0,0.5112846]
[1746549898330,0.34607923,94540.0,94539.0,0.2997]
[1746549899537,0.13472,94540.0,94539.0,0.5112846]
[1746549899936,0.3463024,94540.0,94539.0,0.5112846]
[1746549900439,0.3463024,94540.0,94539.0,0.2997]
[1746549903232,0.3463024,94540.0,94539.0,0.2582]
[1746549903941,0.3857024,94540.0,94539.0,0.2582]
[1746549904139,0.3857024,94540.0,94539.0,0.0802]
[1746549904442,0.2115868,94538.0,94537.0,0.00158667]
[1746549906832,0.31736493,94538.0,94537.0,0.00158667]
[1746549907036,0.2116182,94524.0,94523.0,0.0388]
[1746549907238,0.7071382,94524.0,94523.0,0.0808]
[1746549907439,0.71744116,94524.0,94523.0,0.0388]
[1746549907838,0.2116361,94516.0,94515.0,0.0833]
[1746549908334,0.2116361,94516.0,94515.0,0.2613]
[1746549908539,0.5724361,94516.0,94515.0,0.178]
[1746549908739,0.6555361,94516.0,94515.0,0.178]
[1746549909043,0.6970361,94516.0,94515.0,0.178]
[1746549909242,0.2116473,94511.0,94510.0,0.042]
[1746549910042,0.2915473,94511.0,94510.0,0.042]
[1746549910239,0.2915473,94511.0,94510.0,0.22]
[1746549910638,0.2915473,94511.0,94510.0,0.178]
[1746549911245,0.2915473,94511.0,94507.0,0.0397]
[1746549911246,0.211654,94508.0,94507.0,0.0397]
[1746549911444,0.346334,94508.0,94507.0,0.0397]
[1746549912037,0.346334,94508.0,94507.0,0.0797]
[1746549912239,0.524334,94508.0,94507.0,0.0797]
[1746549913343,0.456974,94508.0,94507.0,0.0797]
[1746549914644,0.178,94508.0,94507.0,0.2913562]
[1746549914847,0.456974,94508.0,94507.0,0.2913562]
[1746549915250,0.278974,94508.0,94507.0,0.2913562]
[1746549915648,0.278974,94508.0,94507.0,0.0797]
[1746549916259,0.456974,94508.0,94507.0,0.0797]
[1746549919352,0.456974,94508.0,94506.0,0.0401]
[1746549919353,0.2116562,94507.0,94506.0,0.0401]
[1746549919551,0.2116585,94506.0,94505.0,0.00105814]
[1746549919947,0.2938585,94506.0,94505.0,0.00105814]
[1746549920143,0.4718585,94506.0,94505.0,0.00105814]
[1746549920351,0.2116966,94489.0,94488.0,0.0806]
[1746549920546,0.7071766,94489.0,94488.0,0.0413]
[1746549920946,0.71786877,94489.0,94488.0,0.0413]
[1746549921347,0.80006877,94489.0,94488.0,0.0413]
[1746549921553,0.7893766,94489.0,94488.0,0.0413]
[1746549922251,0.7485766,94489.0,94488.0,0.0413]
[1746549922752,0.6138966,94489.0,94488.0,0.0413]
[1746549922952,0.7485766,94489.0,94488.0,0.0413]
[1746549923149,0.9265766,94489.0,94488.0,0.0413]
[1746549924856,0.8851766,94489.0,94488.0,0.0413]
[1746549925158,0.8851766,94489.0,94488.0,0.2193]
[1746549925159,0.7071766,94489.0,94488.0,0.2193]
[1746549925856,0.2117257,94476.0,94470.0,0.00158776]
[1746549926060,0.7072057,94476.0,94471.0,0.0417]
[1746549926246,0.2117347,94472.0,94471.0,0.0417]
[1746549927049,0.5293446,94471.0,94445.0,0.01173493]
[1746549927359,0.572584,94450.0,94449.0,0.0409]
[1746549927562,0.639904,94450.0,94449.0,0.0409]
[1746549927859,0.639904,94450.0,94449.0,0.2626862]
[1746549928058,0.639904,94450.0,94449.0,0.2526862]
[1746549928251,0.639904,94450.0,94449.0,0.4306862]
[1746549928562,0.211784,94450.0,94449.0,0.4306862]
[1746549928758,0.06732,94458.0,94457.0,0.2117683]
[1746549928959,0.13464,94458.0,94457.0,0.2117683]
[1746549929159,0.346406,94458.0,94457.0,0.4290683]
[1746549929863,0.3608,94459.0,94458.0,0.211766]
[1746549930057,0.42812,94459.0,94458.0,0.389766]
[1746549930762,0.6398838,94459.0,94458.0,0.389766]
[1746549931257,0.06732,94471.0,94469.0,0.2117312]
[1746549931459,0.2790569,94471.0,94470.0,0.2513391]
[1746549931762,0.3463769,94471.0,94470.0,0.2513391]
[1746549932264,0.2117369,94471.0,94470.0,0.4293391]
[1746549932459,0.06732,94471.0,94470.0,0.4293391]
[1746549932765,0.2790569,94471.0,94470.0,0.4293391]
[1746549933063,0.3608,94476.0,94475.0,0.2117279]
[1746549933266,0.6398457,94476.0,94475.0,0.2117279]
[1746549934158,0.5725257,94476.0,94475.0,0.3897279]
[1746549934361,0.6398457,94476.0,94475.0,0.3897279]
[1746549935163,0.5725257,94476.0,94475.0,0.3897279]
[1746549935366,0.6398457,94476.0,94475.0,0.3897279]
[1746549939166,0.42812,94476.0,94475.0,0.3897279]
[1746549939366,0.06732,94476.0,94475.0,0.3897279]
[1746549939863,0.07191939,107550.0,94484.0,0.2117078]
[1746549939864,1.22924,94489.0,94484.0,0.2117078]
[1746549940166,0.2805255,94485.0,94484.0,0.3897078]
[1746549940858,0.2805255,94485.0,94484.0,0.4276078]
[1746549941563,0.2805255,94485.0,94484.0,0.2159]
[1746549941961,0.2805255,94485.0,94484.0,0.4276078]
[1746549942662,0.2132055,94485.0,94484.0,0.4276078]
[1746549942861,0.0015,94485.0,94484.0,0.8449078]
[1746549943265,0.2132055,94485.0,94484.0,0.8449078]
[1746549944161,0.0015,94485.0,94484.0,0.8449078]
[1746549944571,0.2132055,94485.0,94484.0,0.9507438]
[1746549945275,0.2132055,94485.0,94484.0,2.4507438]
[1746549945967,0.0015,94485.0,94484.0,2.4507438]
[1746549946965,0.0015,94485.0,94484.0,2.4895438]
[1746549947369,0.0015,94485.0,94484.0,2.64832363]
[1746549947667,0.4137136,94508.0,94484.0,2.65661583]
[1746549947861,0.42812,94508.0,94505.0,0.2116607]
[1746549948066,0.2126585,94506.0,94505.0,0.6289607]
[1746549948365,0.001,94506.0,94505.0,0.78690697]
[1746549948670,0.2126585,94506.0,94505.0,0.86480697]
[1746549949068,0.001,94506.0,94505.0,0.86480697]
[1746549949274,0.2126585,94506.0,94505.0,1.04280697]
[1746549950167,0.001,94506.0,94505.0,1.04280697]
[1746549950565,0.2126585,94506.0,94505.0,1.04280697]
[1746549951364,0.2799785,94506.0,94505.0,1.04280697]
[1746549953273,0.2799785,94506.0,94505.0,1.05084248]
[1746549954165,0.001,94506.0,94505.0,1.05084248]
[1746549954366,0.06828,94506.0,94505.0,1.05084248]
[1746549954770,0.2799385,94506.0,94505.0,1.05084248]
[1746549957573,0.2799385,94506.0,94505.0,0.75324627]
[1746549957774,0.3169385,94506.0,94505.0,0.75324627]
[1746549958075,0.3925385,94506.0,94505.0,0.75324627]
[1746549958669,0.3925385,94506.0,94505.0,0.96490697]
[1746549959280,0.3162385,94506.0,94505.0,0.97283011]
[1746549960572,0.3537385,94506.0,94505.0,0.96490697]
[1746549962179,0.06828,94506.0,94505.0,0.96490697]
[1746549962478,0.2799385,94506.0,94505.0,0.96490697]
[1746549962876,0.2799385,94506.0,94505.0,2.46490697]
[1746549963282,0.2799385,94506.0,94505.0,2.4728444]
[1746549964683,0.2799385,94506.0,94505.0,2.2611837]
[1746549964872,0.3514385,94506.0,94505.0,2.0953]
[1746549965072,0.3514385,94506.0,94505.0,2.3069607]
[1746549965371,0.3514385,94506.0,94505.0,0.8069607]
[1746549966081,0.3514385,94506.0,94505.0,0.3896607]
[1746549966580,0.3514385,94506.0,94505.0,0.4598607]
[1746549967285,0.06828,94506.0,94505.0,0.4598607]
[1746549967482,0.06828,94506.0,94505.0,0.4978607]
[1746549968883,0.2799385,94506.0,94505.0,0.4978607]
[1746549970283,0.10638,94506.0,94505.0,0.4978607]
[1746549970584,0.3180385,94506.0,94505.0,0.4978607]
[1746549971202,0.10638,94506.0,94505.0,0.4978607]
[1746549971397,0.3180385,94506.0,94505.0,0.4978607]
[1746549971801,0.3180385,94506.0,94505.0,0.9151607]
[1746549972103,0.10638,94506.0,94505.0,0.9151607]
[1746549972293,0.06828,94506.0,94505.0,0.9151607]
[1746549973099,0.10328,94506.0,94505.0,0.9151607]
[1746549973405,0.3149385,94506.0,94505.0,0.9151607]
[1746549974707,0.10328,94506.0,94505.0,0.9151607]
[1746549975101,0.06828,94506.0,94505.0,1.07361814]
[1746549975598,0.001,94506.0,94505.0,1.07361814]
[1746549975799,0.06828,94506.0,94505.0,1.07361814]
[1746549976199,0.0015,94520.0,94519.0,0.2116294]
[1746549976401,0.05289,94550.0,94535.0,0.2115935]
[1746549976599,0.0713,94549.0,94548.0,0.2115645]
[1746549976806,0.0363,94549.0,94548.0,0.2115645]
[1746549977006,0.2130488,94555.0,94554.0,0.211551]
[1746549977206,0.06878,94555.0,94554.0,0.806851]
[1746549977504,0.2803288,94555.0,94554.0,0.5953]
[1746549978096,0.49584,94555.0,94531.0,0.4173]
[1746549978406,0.49584,94555.0,94519.0,0.3608]
[1746549978407,0.2116249,94521.0,94520.0,0.6289263]
[1746549978706,0.0529056,94523.0,94520.0,0.6289263]
[1746549978707,0.2116217,94523.0,94522.0,0.2116204]
[1746549979096,0.2116217,94523.0,94522.0,0.3896204]
[1746549979298,0.2116217,94523.0,94522.0,1.8896204]
[1746549979498,0.2116217,94523.0,94522.0,1.9977204]
[1746549979901,0.2116217,94523.0,94522.0,1.7506]
[1746549980100,0.2116217,94523.0,94522.0,1.9622226]
[1746549980404,0.2854217,94523.0,94522.0,0.214]
[1746549980608,0.2854217,94523.0,94522.0,0.178]
[1746549981709,0.2854217,94523.0,94522.0,0.3896226]
[1746549982009,0.2494217,94523.0,94522.0,0.3896226]
[1746549982205,0.0378,94523.0,94522.0,0.3896226]
[1746549982402,0.3166604,94523.0,94522.0,0.3896226]
[1746549982603,0.3166604,94523.0,94522.0,0.4600226]
[1746549984111,0.3166604,94523.0,94522.0,0.2484]
[1746549984409,0.6774604,94523.0,94522.0,0.178]
[1746549985101,0.821636,94523.0,94511.0,0.00158707]
[1746549985305,0.211645,94512.0,94511.0,0.00158707]
[1746549985705,0.572445,94512.0,94511.0,0.00158707]
[1746549986105,0.645945,94512.0,94511.0,0.00158707]
[1746549990706,0.751753,94512.0,94511.0,0.00158707]
[1746549992509,0.2116585,94506.0,94503.0,0.0384]
[1746549992704,0.2789385,94506.0,94503.0,0.0384]
[1746549993104,0.2116585,94506.0,94505.0,0.17905814]
[1746549993415,0.4187785,94506.0,94505.0,0.17905814]
[1746549995215,0.4187785,94506.0,94505.0,0.00105814]
[1746549996499,0.4187785,94506.0,94505.0,4e-08]
[1746549996699,0.5245905,94506.0,94505.0,4e-08]
[1746549998413,0.3900705,94506.0,94505.0,4e-08]
[1746549998605,0.2842585,94506.0,94505.0,4e-08]
[1746549998808,0.2789385,94506.0,94505.0,0.21166074]
[1746549999009,0.2789385,94506.0,94505.0,4e-08]
[1746549999208,0.2789385,94506.0,94505.0,0.17800004]
[1746550000009,0.2789385,94506.0,94505.0,0.38966074]
[1746550001217,0.2116585,94506.0,94505.0,0.38966074]
[1746550001416,0.2789385,94506.0,94505.0,0.38966074]
[1746550001714,0.2116585,94506.0,94505.0,0.38966074]
[1746550001914,0.2789385,94506.0,94505.0,0.38966074]
[1746550002520,0.2789385,94506.0,94505.0,0.17800004]
[1746550003412,0.2482585,94506.0,94505.0,0.17800004]
[1746550003713,0.3155385,94506.0,94505.0,0.17800004]
[1746550004715,0.4213505,94506.0,94505.0,0.17800004]
[1746550005218,0.3155385,94506.0,94505.0,4e-08]
[1746550007220,0.3155385,94506.0,94505.0,0.17800004]
[1746550009314,0.2789385,94506.0,94505.0,0.17800004]
[1746550013124,0.2789385,94506.0,94505.0,0.38966074]
[1746550014925,0.2789385,94506.0,94505.0,0.17800004]
[1746550018613,0.2116585,94506.0,94505.0,0.17800004]
[1746550018819,0.2789385,94506.0,94505.0,0.38966074]
[1746550019023,0.2116521,94509.0,94508.0,0.2116518]
[1746550019219,0.2789321,94509.0,94508.0,0.3896518]
[1746550019928,0.2789321,94509.0,94508.0,0.4249518]
[1746550020527,0.3608,94510.0,94509.0,0.2116518]
[1746550020830,0.3608,94513.0,94512.0,0.2645535]
[1746550020831,0.2116495,94513.0,94512.0,0.2645535]
[1746550021016,0.3318403,94513.0,94512.0,0.2116428]
[1746550021220,0.3318403,94513.0,94512.0,0.3896428]
[1746550021417,0.2789295,94513.0,94512.0,0.4590428]
[1746550023132,0.2789228,94513.0,94512.0,0.4590428]
[1746550024023,0.06724,94533.0,94527.0,0.0529018]
[1746550024227,0.264514,94528.0,94527.0,0.2645065]
[1746550024422,0.264514,94528.0,94527.0,0.2116047]
[1746550025233,0.264514,94528.0,94527.0,0.3896047]
[1746550025823,0.264514,94528.0,94527.0,0.178]
[1746550027334,0.300914,94528.0,94527.0,0.178]
[1746550028232,0.2116226,94522.0,94521.0,0.178]
[1746550029134,0.5724226,94522.0,94521.0,0.178]
[1746550029729,0.6782186,94522.0,94521.0,0.178]
[1746550030233,0.2116495,94510.0,94509.0,0.2116512]
[1746550030426,0.2116518,94509.0,94508.0,0.4173]
[1746550030628,0.2486518,94509.0,94508.0,0.4173]
[1746550031033,0.2116585,94506.0,94503.0,0.178]
[1746550031232,0.2116585,94506.0,94505.0,0.21166074]
[1746550032136,0.2116585,94506.0,94505.0,0.38966074]
[1746550035234,0.2116545,94508.0,94507.0,0.211654]
[1746550035432,0.2788945,94508.0,94507.0,0.211654]
[1746550036236,0.2788945,94508.0,94507.0,0.389654]
[1746550037238,0.2788945,94508.0,94507.0,0.423354]
[1746550039543,0.2788945,94508.0,94507.0,0.457054]
[1746550039933,0.3133945,94508.0,94507.0,0.457054]
[1746550040939,0.3133945,94508.0,94507.0,0.494054]
[1746550041138,0.3133945,94508.0,94507.0,0.2824]
[1746550041330,0.3483945,94508.0,94507.0,0.2454]
[1746550042240,0.3483945,94508.0,94507.0,0.178]
[1746550043240,0.35882791,94508.0,94507.0,0.178]
[1746550044935,0.3483945,94508.0,94507.0,0.178]
[1746550045141,0.2116585,94506.0,94505.0,4e-08]
[1746550047036,0.2788985,94506.0,94505.0,4e-08]
[1746550047237,0.2788985,94506.0,94505.0,0.17800004]
[1746550047440,0.2788985,94506.0,94505.0,0.21210004]
[1746550047834,0.2116585,94506.0,94505.0,0.21210004]
[1746550048032,0.3608,94512.0,94510.0,0.2116473]
[1746550048242,0.2116518,94509.0,94508.0,0.2116527]
[1746550049141,0.2116518,94509.0,94508.0,0.3896527]
[1746550049644,0.3665016,94511.0,94510.0,0.2116495]
[1746550049851,0.2116497,94511.0,94510.0,0.2116495]
[1746550050039,0.3608,94512.0,94511.0,0.2116473]
[1746550050241,0.639685,94512.0,94511.0,0.2116473]
[1746550051036,0.42804,94512.0,94511.0,0.2116473]
[1746550051236,0.2645376,94522.0,94521.0,0.2116249]
[1746550051444,0.3317776,94522.0,94521.0,0.2116249]
[1746550051940,0.3664776,94522.0,94521.0,0.2116249]
[1746550052136,0.3664776,94522.0,94521.0,0.3896249]
[1746550053044,0.3317776,94522.0,94521.0,0.3896249]
[1746550053242,0.3683776,94522.0,94521.0,0.3896249]
[1746550054846,0.3011376,94522.0,94521.0,0.3896249]
[1746550055042,0.3683776,94522.0,94521.0,0.3896249]
[1746550056945,0.3683776,94522.0,94521.0,0.178]
[1746550057637,0.3683776,94522.0,94521.0,0.3896249]
[1746550058444,0.3683776,94522.0,94521.0,0.178]
[1746550058832,0.3683776,94522.0,94521.0,0.3896249]
[1746550059432,0.3683776,94522.0,94521.0,0.4251249]
[1746550059636,0.3683776,94522.0,94521.0,0.2135]
[1746550062243,0.3683776,94522.0,94521.0,0.178]
[1746550062449,0.3011376,94522.0,94521.0,0.178]
[1746550062641,0.4741736,94522.0,94521.0,0.178]
[1746550063251,0.2116428,94513.0,94512.0,0.4173]
[1746550063443,0.5724428,94513.0,94512.0,0.4173]
[1746550064354,0.6426428,94513.0,94512.0,0.4173]
[1746550066446,0.6763828,94513.0,94512.0,0.4173]
[1746550066753,0.3155828,94513.0,94512.0,0.628945]
[1746550066950,0.3155828,94513.0,94512.0,0.4173]
[1746550067155,0.3155828,94513.0,94512.0,0.5953]
[1746550067956,0.3155828,94513.0,94512.0,0.178]
[1746550068256,0.2788828,94513.0,94512.0,0.178]
[1746550069154,0.2788828,94513.0,94512.0,0.2489]
[1746550070756,0.2788828,94513.0,94512.0,0.460545]
[1746550071156,0.2788828,94513.0,94512.0,0.2489]
[1746550071359,0.2788828,94513.0,94512.0,0.460545]
[1746550071861,0.3608,94516.0,94512.0,0.2489]
[1746550072163,0.06724,94513.0,94512.0,0.5134557]
[1746550072756,0.2788828,94513.0,94512.0,0.5134557]
[1746550079757,0.2788828,94513.0,94512.0,0.460545]
[1746550080164,0.2788828,94513.0,94512.0,0.2489]
[1746550080469,0.3151828,94513.0,94512.0,0.2489]
[1746550081061,0.3510828,94513.0,94512.0,0.2489]
[1746550081365,0.3510828,94513.0,94512.0,0.178]
[1746550082074,0.3510828,94513.0,94512.0,0.389645]
[1746550082367,0.2475428,94513.0,94512.0,0.389645]
[1746550082567,0.2116428,94515.0,94514.0,0.2645457]
[1746550082771,0.2788428,94515.0,94514.0,0.2645457]
[1746550083064,0.2788428,94515.0,94514.0,0.4425457]
[1746550083269,0.0672,94515.0,94514.0,0.5120457]
[1746550083472,0.2788383,94515.0,94514.0,0.2475]
[1746550084164,0.3130383,94515.0,94514.0,0.2475]
[1746550084371,0.2788383,94515.0,94514.0,0.4591406]
[1746550084971,0.2788383,94515.0,94514.0,0.2475]
[1746550086872,0.2788383,94515.0,94514.0,0.4591406]
[1746550087074,0.3608,94517.0,94516.0,0.2116361]
[1746550087263,0.0672,94517.0,94516.0,0.2116361]
[1746550087462,0.2788338,94517.0,94516.0,0.2116361]
[1746550088176,0.2788338,94517.0,94516.0,0.3896361]
[1746550088873,0.2788338,94517.0,94516.0,0.178]
[1746550089770,0.3143338,94517.0,94516.0,0.178]
[1746550094166,0.2116518,94509.0,94508.0,0.07]
[1746550094479,0.5724518,94509.0,94508.0,0.07]
[1746550094977,0.5724518,94509.0,94507.0,0.4173]
[1746550094978,0.211654,94508.0,94507.0,0.4173]
[1746550095167,0.278354,94508.0,94507.0,0.4173]
[1746550096168,0.278354,94508.0,94507.0,0.5953]
[1746550097475,0.278354,94508.0,94507.0,0.6314]
[1746550097883,0.278354,94508.0,94507.0,0.2141]
[1746550098878,0.3608,94520.0,94507.0,0.2141]
[1746550099077,0.0672,94519.0,94518.0,0.2116316]
[1746550099382,0.2788294,94519.0,94518.0,0.3896316]
[1746550100482,0.2788294,94519.0,94518.0,0.178]
[1746550101582,0.2788294,94519.0,94518.0,0.3896316]
[1746550103591,0.0672,94519.0,94518.0,0.3896316]
[1746550103797,0.0672,94519.0,94518.0,0.178]
[1746550104189,0.2116294,94519.0,94518.0,0.4425342]
[1746550104390,0.2788294,94519.0,94518.0,0.4425342]
[1746550104900,0.2788294,94519.0,94518.0,0.4425394]
[1746550105492,0.0672,94519.0,94518.0,0.4425394]
[1746550105704,0.2116258,94521.0,94520.0,0.2116271]
[1746550105898,0.2788258,94521.0,94520.0,0.2116271]
[1746550106095,0.2788258,94521.0,94520.0,0.3896271]
[1746550107006,0.2116258,94521.0,94520.0,0.3896271]
[1746550107299,0.2788258,94521.0,94520.0,0.3896271]
[1746550108204,0.2645304,94526.0,94525.0,0.2116137]
[1746550108390,0.384636,94526.0,94525.0,0.2116137]
[1746550108595,0.2645276,94524.0,94523.0,0.2116193]
[1746550108798,0.2116249,94521.0,94520.0,0.3896258]
[1746550111003,0.2116249,94521.0,94520.0,0.4228258]
[1746550117003,0.2116249,94521.0,94520.0,0.4609258]
[1746550119505,0.2787849,94521.0,94520.0,0.4609258]
[1746550122902,0.2787849,94521.0,94520.0,0.4991258]
[1746550123104,0.3159849,94521.0,94520.0,0.4991258]
[1746550124118,0.2787849,94521.0,94520.0,0.4991258]
[1746550124919,0.2116249,94521.0,94520.0,0.4991258]
[1746550125604,0.2116249,94521.0,94520.0,1.9991258]
[1746550129819,0.0364,94533.0,94530.0,0.0529006]
[1746550129820,0.0529011,94531.0,94530.0,0.0529006]
[1746550130115,0.3316773,94531.0,94530.0,0.2645009]
[1746550130914,0.3845787,94531.0,94530.0,0.2116003]
[1746550131113,0.3845787,94531.0,94530.0,0.3896003]
[1746550131309,0.4212787,94531.0,94530.0,0.3896003]
[1746550131617,0.4212787,94531.0,94530.0,0.178]
[1746550131817,0.4212787,94531.0,94530.0,0.3896047]
[1746550133015,0.4212787,94531.0,94530.0,0.178]
[1746550151224,0.211607,94529.0,94528.0,0.178]
[1746550152630,0.2116361,94516.0,94505.0,4e-08]
[1746550152826,0.6395561,94516.0,94511.0,0.0377]
[1746550153216,0.5724361,94516.0,94515.0,0.5953]
[1746550153419,0.2116585,94506.0,94505.0,4e-08]
[1746550153632,0.5724585,94506.0,94505.0,4e-08]
[1746550153930,0.6782705,94506.0,94505.0,4e-08]
[1746550154629,0.7524705,94506.0,94505.0,4e-08]
[1746550155027,0.2117078,94484.0,94483.0,0.1095]
[1746550155329,0.21171,94483.0,94482.0,0.13167139]
[1746550155628,0.32101,94483.0,94482.0,0.13167139]
[1746550156830,0.32894567,94483.0,94482.0,0.13167139]
[1746550158230,0.32894567,94483.0,94477.0,0.0365]
[1746550158231,0.2117212,94478.0,94477.0,0.0365]
[1746550158529,0.2788412,94478.0,94477.0,0.0365]
[1746550159030,0.3508412,94478.0,94477.0,0.0365]
[1746550159232,0.3508412,94478.0,94477.0,0.2145]
[1746550160325,0.3139412,94478.0,94477.0,0.2145]
[1746550160522,0.3810612,94478.0,94477.0,0.2517]
[1746550161031,0.3459612,94478.0,94477.0,0.2517]
[1746550164634,0.3828612,94478.0,94477.0,0.2517]
[1746550166627,0.3459612,94478.0,94477.0,0.2517]
[1746550169438,0.3459612,94478.0,94477.0,0.4634234]
[1746550169733,0.3459612,94478.0,94477.0,0.2517]
[1746550173038,0.2116993,94489.0,94488.0,0.2116988]
[1746550173233,0.3608,94492.0,94491.0,0.2116921]
[1746550173433,0.6396098,94492.0,94491.0,0.2116921]
[1746550173646,0.2116921,94491.0,94490.0,0.035]
[1746550173940,0.2116921,94491.0,94490.0,0.0731]
[1746550174140,0.2116921,94491.0,94490.0,0.2511]
[1746550174642,0.2116921,94491.0,94490.0,0.4627943]
[1746550174835,0.2116921,94491.0,94490.0,0.2511]
[1746550176237,0.2788121,94491.0,94490.0,0.2511]
[1746550177240,0.2788121,94491.0,94490.0,0.4627943]
[1746550177941,0.2788121,94491.0,94490.0,0.2511]
[1746550180441,0.6741121,94491.0,94490.0,0.2511]
[1746550181441,0.6396121,94491.0,94490.0,0.4627943]
[1746550181642,0.3608,94491.0,94490.0,0.4627943]
[1746550181842,0.06712,94498.0,94494.0,0.2116849]
[1746550182038,0.2116809,94496.0,94495.0,0.2857831]
[1746550182436,0.2116809,94496.0,94495.0,0.0741]
[1746550182946,0.2116809,94496.0,94495.0,0.2857831]
[1746550183146,0.2116809,94496.0,94495.0,0.2521]
[1746550185345,0.2116809,94496.0,94495.0,0.4637831]
[1746550186941,0.2788009,94496.0,94495.0,0.2521]
[1746550188659,0.2788009,94496.0,94495.0,0.178]
[1746550189043,0.4194249,94496.0,94495.0,0.178]
[1746550189248,0.2116876,94493.0,94492.0,0.178]
[1746550189548,0.5724876,94493.0,94492.0,0.178]
[1746550189749,0.6783156,94493.0,94492.0,0.178]
[1746550189951,0.716628,94493.0,94475.0,0.00105848]
[1746550190147,0.5725257,94476.0,94475.0,0.17905848]
[1746550190346,0.6396457,94476.0,94475.0,0.17905848]
[1746550191350,0.7104457,94476.0,94475.0,0.17905848]
[1746550192251,1.08180783,94476.0,94475.0,0.09728608]
[1746550192437,0.2117436,94468.0,94467.0,0.00158785]
[1746550192639,0.5725436,94468.0,94467.0,0.00158785]
[1746550193145,0.5725436,94468.0,94467.0,0.17958785]
[1746550193348,0.6437436,94468.0,94467.0,0.17958785]
[1746550196555,0.6098436,94468.0,94467.0,0.17958785]
[1746550197459,0.7440836,94468.0,94467.0,0.17958785]
[1746550213081,0.0529398,94462.0,94445.0,0.00105881]
[1746550213384,0.2117772,94453.0,94452.0,0.0732]
[1746550213687,0.6396572,94453.0,94452.0,0.0732]
[1746550214184,0.6745572,94453.0,94452.0,0.2512]
[1746550223287,0.7416372,94453.0,94452.0,0.2512]
[1746550224382,0.42788,94453.0,94452.0,0.4629795]
[1746550224581,0.7067372,94453.0,94452.0,0.4629795]
[1746550224781,0.7067372,94453.0,94452.0,0.2512]
[1746550225182,0.3608,94453.0,94452.0,0.4629795]
[1746550225381,0.6396572,94453.0,94452.0,0.4629795]
[1746550225579,0.6396572,94453.0,94452.0,0.2512]
[1746550226487,0.6396572,94453.0,94452.0,0.4629795]
[1746550226687,0.42788,94453.0,94452.0,0.4629795]
[1746550226887,0.6396572,94453.0,94452.0,0.4629795]
[1746550228284,0.6396572,94453.0,94452.0,0.2512]
[1746550232294,0.42788,94453.0,94452.0,0.4629795]
[1746550233290,0.5725772,94453.0,94452.0,0.4629795]
[1746550233490,0.6396572,94453.0,94452.0,0.2512]
[1746550234593,0.6396572,94453.0,94452.0,0.4629795]
[1746550235396,0.42788,94453.0,94452.0,0.4629795]
[1746550235898,0.6396572,94453.0,94452.0,0.2512]
[1746550237799,0.6396572,94453.0,94452.0,0.4629795]
[1746550240607,0.6396572,94453.0,94452.0,0.2512]
[1746550240904,0.6396572,94453.0,94452.0,0.4629795]
[1746550241108,0.6396572,94453.0,94452.0,0.2512]
[1746550241404,0.6396572,94453.0,94452.0,0.4629795]
[1746550241595,0.6396572,94453.0,94452.0,0.2512]
[1746550245600,0.6746572,94453.0,94452.0,0.2143]
[1746550249207,0.6746572,94453.0,94452.0,0.178]
[1746550249607,0.2117929,94446.0,94445.0,0.00105881]
[1746550249813,0.2118199,94434.0,94433.0,0.0358]
[1746550250107,0.6396599,94434.0,94433.0,0.0358]
[1746550250500,0.0529606,94424.0,94400.0,0.27526503]
[1746550250698,0.0529606,94424.0,94400.0,0.1]
[1746550250699,0.2118602,94416.0,94400.0,0.1]
[1746550250899,0.2789002,94416.0,94400.0,0.1]
[1746550251098,0.2789002,94416.0,94415.0,0.17905915]
[1746550251303,0.2118759,94409.0,94400.0,0.1]
[1746550251500,0.2789159,94409.0,94400.0,0.1]
[1746550251903,0.2789159,94409.0,94402.0,0.0529728]
[1746550252100,0.3789559,94409.0,94408.0,0.17958877]
[1746550252411,0.4148559,94409.0,94408.0,0.17958877]
[1746550256009,0.2118939,94401.0,94400.0,0.1]
[1746550256206,0.5726939,94401.0,94400.0,0.278]
[1746550256806,0.65295191,94401.0,94400.0,0.278]
[1746550257607,0.6422939,94401.0,94400.0,0.278]
[1746550258009,0.0696,94401.0,94400.0,0.4898961]
[1746550258205,0.16966,94401.0,94400.0,0.4898961]
[1746550258510,0.10258,94401.0,94400.0,0.4898961]
[1746550259109,0.3608,94421.0,94400.0,0.3495]
[1746550259308,0.06708,94408.0,94405.0,0.0529711]
[1746550259612,0.10318,94408.0,94407.0,0.2118804]
[1746550260004,0.10318,94408.0,94407.0,0.2826804]
[1746550260209,0.0361,94408.0,94407.0,0.4606804]
[1746550260509,0.06708,94409.0,94408.0,0.2118782]
[1746550260709,0.13416,94409.0,94408.0,0.2826782]
[1746550260910,0.17046,94409.0,94408.0,0.2826782]
[1746550261115,0.3823359,94409.0,94408.0,0.2488]
[1746550261313,0.17046,94409.0,94408.0,0.4606782]
[1746550261612,0.06708,94418.0,94415.0,0.0529652]
[1746550261806,0.06708,94418.0,94417.0,0.211858]
[1746550262006,0.3460157,94418.0,94417.0,0.211858]
[1746550262205,0.3460157,94418.0,94417.0,0.178]
[1746550262913,0.4189157,94418.0,94417.0,0.178]
[1746550263307,0.2118939,94401.0,94392.0,0.0362]
[1746550263617,0.6397739,94401.0,94394.0,0.0346]
[1746550263918,0.6397739,94401.0,94400.0,0.3118961]
[1746550264109,0.6397739,94401.0,94400.0,0.1]
[1746550264711,0.6758739,94401.0,94400.0,0.1]
[1746550265014,0.3150739,94401.0,94400.0,0.3118961]
[1746550265716,0.3150739,94401.0,94400.0,0.1]
[1746550266810,0.3496739,94401.0,94400.0,0.1]
[1746550267711,0.7104739,94401.0,94400.0,0.1]
[1746550267912,0.10318,94401.0,94400.0,0.3118961]
[1746550268117,0.3150739,94401.0,94400.0,0.3118961]
[1746550268513,0.3150739,94401.0,94400.0,0.1]
[1746550268721,0.3150739,94401.0,94400.0,0.3118961]
[1746550269023,0.06708,94401.0,94400.0,0.3118961]
[1746550269220,0.06708,94401.0,94400.0,0.3648696]
[1746550270619,0.3608,94433.0,94402.0,0.0529726]
[1746550270816,0.3512921,94419.0,94418.0,0.2118492]
[1746550271008,0.3512921,94419.0,94416.0,0.0529645]
[1746550271009,0.2118557,94418.0,94417.0,0.0686]
[1746550271419,0.2453557,94418.0,94417.0,0.0686]
[1746550271621,0.2453557,94418.0,94417.0,0.280458]